bitfinex/quotes_ETHUSD_20260202
["timestamp","ask_amount","ask_price","bid_price","bid_amount"]
[1769990849163,1.09711519,2281.0,2279.4,0.01342642]
[1769990849387,1.14337147,2280.8,2279.2,1.0968735]
[1769990849567,0.1024,2280.6,2279.2,1.0968735]
[1769990849765,0.93657956,2280.5,2279.2,1.0968735]
[1769990850096,0.33335233,2280.6,2279.2,1.11029992]
[1769990850388,1.19845857,2280.9,2279.2,1.0968735]
[1769990850598,2.06655612,2280.8,2279.2,1.0968735]
[1769990850820,0.1024,2280.4,2278.9,0.92]
[1769990850962,0.93661107,2280.3,2279.2,1.09687208]
[1769990851164,1.24577147,2280.7,2278.3,0.01342642]
[1769990851362,1.24577147,2280.7,2279.2,1.09685965]
[1769990851363,1.12994505,2280.2,2279.2,1.09685965]
[1769990851790,0.1024,2280.3,2279.2,1.09685965]
[1769990851995,0.93832554,2280.2,2279.2,1.09685965]
[1769990852196,0.93912353,2280.1,2279.0,1.09697235]
[1769990852407,0.93912353,2280.0,2279.0,1.09697235]
[1769990852610,1.12994505,2280.5,2279.1,0.01342642]
[1769990852762,1.09625598,2280.5,2279.1,0.01342642]
[1769990852966,8.18234108,2280.4,2279.0,1.73745853]
[1769990853168,0.1024,2280.2,2279.0,1.09697235]
[1769990853365,2.17144571,2280.2,2279.0,1.09697235]
[1769990853567,1.23234505,2280.0,2278.7,0.001]
[1769990853816,0.1024,2279.4,2277.8,1.09854477]
[1769990853994,1.12994505,2279.2,2278.1,1.0973822]
[1769990854320,11.79828493,2279.1,2277.8,0.001]
[1769990854465,1.12994505,2278.9,2277.8,0.001]
[1769990854703,4.301827,2278.8,2277.8,0.001]
[1769990855045,4.301827,2278.8,2276.9,1.09793893]
[1769990855046,1.12994505,2278.0,2276.9,1.09793893]
[1769990855191,1.52004673,2278.2,2276.6,0.001]
[1769990855192,1.14337147,2278.1,2276.6,0.001]
[1769990855391,2.06904571,2278.1,2276.6,0.001]
[1769990855612,1.12994505,2278.4,2276.7,0.01342642]
[1769990855819,2.659702,2278.3,2277.2,4.39122523]
[1769990856025,5.70994404,2278.2,2276.9,1.09795052]
[1769990856239,21.75118412,2278.1,2276.6,0.001]
[1769990856392,0.01342642,2277.6,2276.6,0.001]
[1769990856588,0.1024,2277.5,2276.6,0.001]
[1769990856824,1.23234505,2277.9,2276.6,0.001]
[1769990857098,1.2147366,2277.8,2276.6,0.001]
[1769990857436,0.11582642,2277.6,2276.6,0.001]
[1769990857637,0.95189671,2277.5,2276.6,0.001]
[1769990857844,0.01342642,2277.6,2276.6,0.001]
[1769990857997,0.01342642,2277.2,2275.8,3.20536301]
[1769990858343,1.21359843,2277.4,2275.8,4.62439444]
[1769990858639,1.09761709,2277.7,2275.9,0.2335703]
[1769990858792,1.19989739,2278.0,2276.2,0.01342642]
[1769990859128,0.3789647,2278.2,2276.7,0.01342642]
[1769990859338,0.11582642,2278.5,2276.4,13.5870386]
[1769990859544,0.1024,2278.3,2276.6,0.01342642]
[1769990859823,1.09716492,2278.6,2276.9,0.01342642]
[1769990859990,0.01342642,2278.3,2276.1,0.24699672]
[1769990860194,0.01342642,2278.3,2276.5,1.09817702]
[1769990860195,1.09740573,2278.1,2276.5,1.09817702]
[1769990860423,1.29297481,2278.0,2276.6,1.90779237]
[1769990860606,2.455,2278.0,2276.6,1.90779237]
[1769990860810,2.326,2278.0,2276.5,1.09817702]
[1769990861010,1.09704323,2278.9,2277.3,0.01342642]
[1769990861222,0.01342642,2278.8,2277.4,0.92]
[1769990861393,0.01342642,2278.6,2277.4,0.92]
[1769990861796,0.01342642,2278.3,2277.4,0.92]
[1769990862025,0.01342642,2277.8,2276.5,1.09817702]
[1769990862195,0.01342642,2277.7,2276.5,2.01817702]
[1769990862521,0.01342642,2277.5,2276.5,2.01817702]
[1769990862731,0.01342642,2277.4,2276.5,2.01817702]
[1769990863153,0.01342642,2276.9,2275.8,2.28536301]
[1769990863306,0.01342642,2276.6,2275.2,4.39505539]
[1769990863500,0.01342642,2276.6,2275.8,1.09849614]
[1769990863699,0.01342642,2276.3,2275.4,1.09867129]
[1769990863933,0.01342642,2275.9,2275.3,1.09873162]
[1769990864131,0.01342642,2275.5,2273.9,1.09943269]
[1769990864296,0.01342642,2275.4,2273.9,1.09943269]
[1769990864492,0.01342642,2275.4,2274.0,2.00042753]
[1769990864732,0.01342642,2275.2,2274.0,2.00042753]
[1769990864918,0.01342642,2275.2,2273.9,1.09943269]
[1769990864919,0.01342642,2275.1,2273.9,1.09943269]
[1769990865118,0.01342642,2275.5,2273.9,1.09943269]
[1769990865409,0.01342642,2275.4,2273.9,1.09943269]
[1769990865627,0.01342642,2275.3,2273.9,1.09943269]
[1769990865997,0.01342642,2275.9,2273.9,14.68647129]
[1769990866139,1.11160344,2276.5,2274.4,14.33408344]
[1769990866433,0.01342642,2276.2,2274.4,14.33408344]
[1769990866604,0.01342642,2276.1,2274.4,14.33408344]
[1769990866806,0.01342642,2276.0,2274.4,14.33408344]
[1769990867124,0.01342642,2275.9,2274.4,1.09919099]
[1769990867322,0.01342642,2275.4,2274.4,1.09919099]
[1769990867633,0.01342642,2275.8,2275.5,0.001]
[1769990867929,0.01342642,2275.8,2274.4,1.09919099]
[1769990868132,0.01342642,2276.1,2274.5,0.5495955]
[1769990868302,1.11185605,2276.0,2274.6,1.09909434]
[1769990869014,0.01342642,2275.8,2274.6,1.09909434]
[1769990869218,0.01342642,2275.9,2274.6,1.09909434]
[1769990869526,1.11185605,2276.0,2274.6,1.09909434]
[1769990869730,0.55187937,2275.9,2274.6,2.1432388]
[1769990869932,0.01342642,2275.7,2274.7,0.921]
[1769990870527,0.01342642,2276.2,2274.8,1.09899771]
[1769990871168,0.01342642,2276.1,2274.8,1.09899771]
[1769990871367,0.01342642,2276.5,2274.8,1.09899771]
[1769990871571,0.01342642,2276.3,2274.9,0.64159886]
[1769990871741,0.01342642,2276.2,2274.9,0.64159886]
[1769990871945,0.01342642,2277.1,2274.9,13.64292101]
[1769990872198,0.01342642,2277.2,2275.1,13.01474857]
[1769990872400,0.01342642,2278.0,2276.1,0.2335703]
[1769990872681,1.09749036,2278.0,2276.3,0.2335703]
[1769990872978,0.01342642,2277.9,2276.2,2.01932176]
[1769990873160,1.09749036,2278.0,2276.2,2.03274818]
[1769990873368,0.01342642,2277.9,2276.2,2.01932176]
[1769990873691,1.09743771,2278.1,2276.2,2.03274818]
[1769990873993,0.01342642,2277.7,2276.2,2.01932176]
[1769990874286,0.01342642,2277.5,2276.2,2.01932176]
[1769990874441,1.09783945,2277.2,2276.3,1.09827351]
[1769990874839,1.09783945,2277.2,2276.2,2.01929386]
[1769990875285,1.09777728,2277.4,2276.2,2.01929386]
[1769990875441,0.01342642,2277.4,2276.2,2.01929386]
[1769990875772,0.01342642,2277.2,2276.2,2.01929386]
[1769990876072,0.01342642,2277.1,2276.1,1.09836473]
[1769990876238,0.01342642,2277.3,2276.2,1.0982969]
[1769990876644,0.01342642,2276.9,2275.7,1.09856307]
[1769990876871,0.01342642,2276.7,2275.7,1.09856307]
[1769990877047,0.01342642,2276.6,2275.7,1.09856307]
[1769990877868,0.01342642,2276.7,2275.7,1.09856307]
[1769990878270,0.11582642,2277.1,2275.7,1.09856307]
[1769990878449,3.138019,2277.0,2275.7,1.09856307]
[1769990878650,1.11150697,2276.7,2275.7,1.09856307]
[1769990879277,1.09805734,2276.8,2275.7,1.09856307]
[1769990879849,1.11148376,2276.8,2275.7,1.09856307]
[1769990880048,0.0011,2276.4,2275.7,1.09856307]
[1769990881743,0.1024,2277.1,2275.7,1.09856307]
[1769990881949,0.01342642,2276.8,2275.7,2.17938329]
[1769990882146,0.01342642,2276.7,2275.7,1.09856307]
[1769990882473,0.1024,2277.2,2275.8,0.921]
[1769990882673,0.01452642,2278.6,2276.3,13.00132215]
[1769990882848,0.01452642,2278.6,2276.8,0.24699672]
[1769990882849,0.0011,2278.6,2276.8,0.24699672]
[1769990883044,0.0011,2278.6,2277.0,0.24699672]
[1769990883275,0.01342642,2278.3,2276.9,0.921]
[1769990883478,0.01342642,2278.0,2276.9,0.921]
[1769990883780,0.01342642,2277.7,2276.9,0.921]
[1769990884074,1.11169575,2278.6,2276.9,0.921]
[1769990884277,5.51640895,2278.4,2276.9,0.921]
[1769990884486,0.01342642,2277.8,2276.9,0.921]
[1769990884648,1.16266337,2277.8,2276.2,1.09832176]
[1769990884859,1.09758228,2277.8,2276.2,1.09832176]
[1769990885187,1.1110087,2277.8,2276.2,1.09832176]
[1769990885389,1.1110087,2277.8,2276.1,5.31428705]
[1769990885390,0.01342642,2277.1,2276.1,0.921]
[1769990885589,0.01342642,2276.7,2275.7,1.09855972]
[1769990885769,0.01342642,2276.6,2275.6,1.09858778]
[1769990885966,0.1024,2276.9,2276.0,1.09839075]
[1769990886165,0.1024,2276.9,2275.6,1.09857864]
[1769990886166,3.68112176,2276.8,2275.6,1.09857864]
[1769990886376,0.11582642,2276.6,2274.8,0.001]
[1769990886580,0.11582642,2276.0,2274.8,0.001]
[1769990886785,0.01342642,2275.6,2274.8,0.001]
[1769990886982,0.01342642,2275.4,2274.8,0.001]
[1769990887314,0.1024,2275.7,2274.8,0.001]
[1769990887474,0.1024,2275.5,2274.8,0.001]
[1769990887663,0.93937675,2275.4,2274.8,0.001]
[1769990887856,4.89236642,2275.3,2273.8,1.09945484]
[1769990888065,0.01342642,2274.9,2273.5,0.921]
[1769990888260,1.17458347,2275.5,2274.5,1.09913911]
[1769990888512,1.31570957,2275.4,2274.5,1.09913911]
[1769990888705,1.09885279,2275.1,2273.6,1.09957776]
[1769990889009,1.04092778,2275.0,2273.6,1.09957776]
[1769990889156,0.01342642,2274.9,2273.6,1.09957776]
[1769990889363,2.316106,2274.8,2273.6,1.09957776]
[1769990889565,0.11582642,2275.0,2273.6,1.09957776]
[1769990889760,0.78355267,2275.0,2273.6,1.09957776]
[1769990890108,0.78355267,2275.0,2272.9,5.32057471]
[1769990890109,0.01342642,2274.6,2272.9,5.32057471]
[1769990890263,0.1024,2274.9,2273.5,1.09962571]
[1769990890916,3.19956742,2274.8,2273.2,4.3985045]
[1769990891207,0.44143581,2274.7,2273.2,4.3985045]
[1769990891361,1.21479065,2274.9,2273.2,4.3985045]
[1769990891362,0.11582642,2274.8,2273.2,4.3985045]
[1769990891561,1.11239065,2274.9,2273.2,4.3985045]
[1769990891789,1.09896423,2274.9,2273.2,4.3985045]
[1769990891966,1.09896423,2274.9,2273.2,4.41193092]
[1769990892492,1.17458347,2275.6,2273.5,13.30274635]
[1769990892668,1.0988045,2275.2,2273.8,1.09948104]
[1769990892871,0.01342642,2275.3,2273.9,0.921]
[1769990893101,0.01342642,2275.6,2273.9,0.921]
[1769990893102,1.11203777,2275.6,2273.9,0.921]
[1769990893322,1.11192047,2275.9,2273.9,13.99017605]
[1769990893540,3.14394692,2275.9,2274.0,1.29956084]
[1769990893796,0.01342642,2275.7,2274.0,1.29956084]
[1769990894009,0.01342642,2275.1,2273.9,0.921]
[1769990894167,0.01342642,2275.3,2273.9,0.921]
[1769990894569,0.01342642,2275.0,2273.9,0.921]
[1769990894911,0.01342642,2275.3,2274.0,1.09938434]
[1769990895510,1.11206842,2275.6,2274.0,1.09938434]
[1769990895809,1.78285989,2275.6,2274.1,0.64179217]
[1769990895989,1.09856307,2275.7,2274.1,0.64179217]
[1769990896168,0.01342642,2276.0,2274.1,0.64179217]
[1769990896375,0.01342642,2275.7,2274.1,0.64179217]
[1769990896708,1.11193372,2275.9,2274.2,1.09928766]
[1769990896871,1.0985073,2275.9,2274.2,1.09928766]
[1769990897071,1.67407998,2275.9,2274.3,0.61382305]
[1769990897326,0.01342642,2275.6,2274.3,0.61382305]
[1769990898698,1.09861135,2275.6,2274.4,1.09919099]
[1769990898917,0.56214626,2275.9,2274.4,1.09919099]
[1769990899124,4.40629587,2276.5,2274.5,0.6109778]
[1769990899410,0.01342642,2277.0,2274.9,13.28931993]
[1769990899702,15.94183477,2277.4,2275.5,0.01342642]
[1769990899703,1.09777647,2277.4,2275.5,0.01342642]
[1769990899869,0.01342642,2277.4,2275.5,0.01342642]
[1769990900072,0.0011,2277.5,2276.2,0.01342642]
[1769990900278,0.01342642,2278.5,2276.2,0.01342642]
[1769990900279,0.0011,2278.6,2276.7,13.30274635]
[1769990900477,0.0011,2278.6,2278.3,0.22945357]
[1769990900697,1.09827239,2278.6,2277.5,0.921]
[1769990900877,0.0011,2278.6,2277.6,1.09764664]
[1769990901285,0.0011,2278.6,2277.0,4.39171226]
[1769990901286,0.01342642,2278.4,2276.8,0.921]
[1769990901616,0.01342642,2278.1,2277.1,4.39146906]
[1769990901917,0.01342642,2278.0,2277.0,1.09793115]
[1769990902094,0.01342642,2278.3,2277.4,1.09771374]
[1769990902415,0.0011,2278.6,2277.5,1.09768901]
[1769990902792,1.11169134,2278.6,2276.9,1.0979841]
[1769990902988,0.55137775,2278.5,2277.0,0.64109205]
[1769990903200,0.1024,2278.4,2277.0,0.64109205]
[1769990903404,0.01342642,2278.3,2277.0,0.64109205]
[1769990903823,0.01342642,2278.2,2277.0,0.64109205]
[1769990904023,0.01342642,2278.0,2276.8,0.921]
[1769990904223,0.01342642,2278.0,2276.8,2.01902022]
[1769990904224,0.01342642,2277.8,2276.8,2.01902022]
[1769990904419,0.01342642,2277.9,2276.8,0.921]
[1769990904621,0.01342642,2277.6,2276.8,0.921]
[1769990904932,1.11112126,2277.5,2276.8,0.921]
[1769990905130,4.40420578,2277.6,2276.8,0.921]
[1769990905131,1.09766452,2277.6,2276.8,0.921]
[1769990905293,1.54757324,2277.6,2276.8,0.921]
[1769990905498,1.09759598,2277.8,2276.8,2.01901258]
[1769990905699,4.4025166,2278.4,2276.8,2.01901258]
[1769990906001,2.14902742,2278.3,2276.8,2.01901258]
[1769990906208,0.11582642,2278.3,2276.8,2.01901258]
[1769990906411,1.09726123,2278.4,2276.8,2.01901258]
[1769990906598,0.0011,2278.6,2277.4,0.01342642]
[1769990906814,0.0011,2278.6,2277.4,1.09774304]
[1769990906994,0.0011,2278.6,2277.4,1.11116946]
[1769990907198,1.09676489,2279.5,2277.7,0.01342642]
[1769990907424,0.0011,2279.8,2278.0,0.01342642]
[1769990907613,0.0011,2279.8,2278.3,0.01342642]
[1769990907930,0.0011,2279.8,2278.5,0.01342642]
[1769990908133,0.01342642,2280.9,2278.5,0.01342642]
[1769990908134,14.78767836,2281.4,2279.1,0.01342642]
[1769990908320,2.02918212,2281.3,2279.7,0.01342642]
[1769990908522,1.20432095,2281.5,2279.7,0.01342642]
[1769990908841,0.1085477,2281.5,2280.0,1.10991764]
[1769990909137,1.09509833,2282.9,2280.5,0.01342642]
[1769990909333,0.22910635,2283.0,2281.1,0.01342642]
[1769990909541,0.0064115,2283.4,2282.2,0.01342642]
[1769990909845,1.17458347,2284.9,2282.8,0.01342642]
[1769990909846,1.1075662,2284.9,2282.8,0.01342642]
[1769990910010,0.01342642,2284.3,2282.2,0.01342642]
[1769990910216,0.01342642,2284.3,2281.7,0.01342642]
[1769990910217,4.00300142,2284.2,2282.3,0.921]
[1769990910549,0.01342642,2283.8,2282.3,0.921]
[1769990910704,0.01342642,2282.9,2280.9,0.01342642]
[1769990910903,4.37973876,2283.3,2281.3,0.01342642]
[1769990911125,1.91011666,2283.2,2281.5,0.01342642]
[1769990911445,1.09486507,2283.4,2281.8,0.01342642]
[1769990911617,1.09486507,2283.4,2281.7,0.01342642]
[1769990911814,3.391375,2283.3,2281.1,0.01342642]
[1769990912020,2.236071,2283.2,2281.4,0.01342642]
[1769990912214,0.01342642,2283.0,2281.0,1.09601052]
[1769990912439,0.1024,2282.8,2281.1,0.92]
[1769990912664,17.99121301,2284.1,2281.8,0.01342642]
[1769990912872,17.99121301,2284.1,2282.1,1.10890865]
[1769990912873,7.36996177,2284.0,2282.1,1.10890865]
[1769990913156,0.01342642,2284.2,2282.3,0.01342642]
[1769990913311,2.403123,2284.1,2282.3,0.01342642]
[1769990913512,0.01342642,2283.7,2282.2,0.92]
[1769990913758,0.01342642,2283.1,2281.2,0.01342642]
[1769990913923,0.01342642,2282.8,2281.4,1.09581508]
[1769990914125,0.01342642,2282.5,2281.2,0.92]
[1769990914350,0.01342642,2282.4,2281.2,0.92]
[1769990914649,0.01342642,2282.2,2281.2,0.92]
[1769990914825,1.10854492,2282.9,2281.2,2.01591003]
[1769990915025,0.01342642,2283.3,2281.4,0.01342642]
[1769990915026,0.1024,2283.2,2281.4,0.01342642]
[1769990915350,0.1024,2283.2,2281.5,0.01342642]
[1769990915579,1.64511197,2284.8,2282.8,13.06917605]
[1769990915852,0.09020693,2285.0,2283.7,0.01342642]
[1769990916025,0.09020693,2285.0,2284.0,0.01342642]
[1769990916235,0.09020693,2285.0,2284.1,0.92]
[1769990916643,1.20216463,2286.0,2284.2,0.01342642]
[1769990916953,1.20216463,2286.0,2284.2,1.09446285]
[1769990916954,0.1024,2285.7,2284.2,1.09446285]
[1769990917254,0.1024,2285.7,2284.2,1.09445907]
[1769990917255,4.268385,2285.6,2284.2,1.09445907]
[1769990917548,0.1024,2285.5,2284.2,1.09447222]
[1769990917754,4.49681006,2286.0,2284.2,1.10789864]
[1769990917755,1.20219057,2286.0,2284.2,1.10789864]
[1769990917951,1.20219057,2286.0,2284.3,0.01342642]
[1769990918252,0.1085477,2286.0,2284.9,0.01342642]
[1769990918550,0.1085477,2286.0,2285.4,0.01342642]
[1769990918758,0.1085477,2286.0,2285.5,0.01342642]
[1769990919052,0.1085477,2286.0,2285.0,2.0130536]
[1769990919432,0.1085477,2286.0,2285.2,0.01342642]
[1769990919632,0.1085477,2286.0,2285.0,2.61132409]
[1769990919633,0.1085477,2286.0,2285.0,2.0130536]
[1769990919834,1.20216803,2286.0,2285.0,0.919]
[1769990920167,10.984492,2285.9,2284.1,0.01342642]
[1769990920366,0.1024,2285.8,2284.1,0.01342642]
[1769990920662,0.57407925,2285.8,2285.0,1.09408631]
[1769990920864,1.09375683,2285.7,2284.5,1.09433068]
[1769990921038,3.62527283,2285.7,2284.2,1.09446783]
[1769990921235,3.62527283,2285.7,2283.9,0.01342642]
[1769990921236,2.056521,2285.6,2283.9,0.01342642]
[1769990921449,2.056521,2285.6,2283.6,0.01342642]
[1769990921450,0.1024,2285.5,2284.0,1.09456595]
[1769990921783,0.1024,2285.5,2284.4,1.09437055]
[1769990921933,0.1024,2285.5,2283.6,0.93242642]
[1769990921934,1.09375683,2285.7,2284.1,0.01342642]
[1769990922261,0.54698842,2285.6,2284.6,1.0942531]
[1769990922476,0.54698842,2285.6,2284.6,1.09428003]
[1769990922662,1.0948388,2285.8,2284.7,1.0942157]
[1769990922830,0.0011,2285.8,2284.5,0.01342642]
[1769990923028,0.0011,2285.8,2284.3,0.01342642]
[1769990923227,0.0011,2285.8,2284.8,0.01342642]
[1769990923530,0.0011,2285.8,2284.9,0.918]
[1769990923962,3.23952242,2285.7,2284.1,4.37805337]
[1769990924168,0.3388313,2285.6,2284.1,5.36312618]
[1769990924327,0.01342642,2285.3,2284.1,5.36312618]
[1769990924527,0.01342642,2285.3,2284.1,2.07959581]
[1769990924824,0.01342642,2285.6,2283.9,4.37828371]
[1769990925238,0.0011,2285.8,2284.2,13.20564318]
[1769990925435,0.1085477,2286.0,2284.7,0.01342642]
[1769990925659,1.33506537,2287.4,2285.1,0.01342642]
[1769990925834,13.33690349,2288.1,2285.6,0.01342642]
[1769990926175,0.22856251,2287.9,2286.1,0.01342642]
[1769990926374,0.01342642,2287.7,2285.7,0.01342642]
[1769990926527,0.01342642,2287.3,2285.3,13.39797583]
[1769990926723,0.29374754,2287.7,2285.6,13.39797583]
[1769990927027,0.01342642,2288.1,2286.1,0.01342642]
[1769990927228,1.09260825,2288.2,2286.3,0.01342642]
[1769990927523,3.314592,2288.1,2286.0,0.01342642]
[1769990927728,0.01342642,2287.9,2285.9,0.01342642]
[1769990927928,2.247998,2287.8,2286.0,0.01342642]
[1769990928163,0.1024,2288.1,2286.1,0.01342642]
[1769990928331,0.1024,2288.1,2286.2,0.01342642]
[1769990928527,4.38325039,2288.5,2286.2,0.01342642]
[1769990928729,0.01342642,2288.3,2286.4,0.01342642]
[1769990928928,0.01342642,2288.0,2286.4,1.09339611]
[1769990929136,8.81811625,2288.2,2286.4,1.64010451]
[1769990929137,1.09256183,2288.2,2286.4,1.64010451]
[1769990929341,7.06314842,2288.1,2286.4,1.64010618]
[1769990929537,0.1024,2288.1,2286.4,1.6535326]
[1769990929728,0.1024,2288.1,2286.4,1.64010618]
[1769990929924,1.09256183,2288.2,2286.4,1.64010618]
[1769990930163,2.76250298,2288.1,2286.5,0.60139504]
[1769990930336,2.054533,2288.0,2286.5,0.60139504]
[1769990930538,4.47207445,2288.6,2286.5,0.60139504]
[1769990930739,0.11582642,2288.2,2286.5,0.49196704]
[1769990930953,0.11582642,2288.2,2286.1,1.09356546]
[1769990930954,0.11582642,2287.8,2286.1,1.09356546]
[1769990931159,0.1024,2287.8,2286.2,0.01342642]
[1769990931539,2.027414,2287.7,2286.2,0.01342642]
[1769990931868,2.027414,2287.7,2286.1,1.10699188]
[1769990931869,0.1024,2287.8,2286.1,1.10699188]
[1769990932038,2.482554,2287.7,2286.3,0.01342642]
[1769990932242,0.2482554,2287.6,2286.3,0.01342642]
[1769990932472,4.37035905,2288.2,2286.3,0.01342642]
[1769990932671,0.1024,2288.0,2286.2,0.01342642]
[1769990932870,0.1024,2288.0,2286.0,4.37426184]
[1769990932871,1.09280062,2287.7,2286.0,4.37426184]
[1769990933070,2.136673,2287.6,2286.0,4.37426184]
[1769990933368,4.38462893,2287.9,2286.0,4.37426184]
[1769990933369,1.09264038,2288.1,2286.2,0.01342642]
[1769990933543,1.0925157,2288.3,2286.6,0.01342642]
[1769990933742,0.0011,2287.9,2286.7,0.917]
[1769990934353,0.0011,2287.9,2286.8,0.01342642]
[1769990934575,0.0011,2287.9,2286.7,0.917]
[1769990934743,0.0011,2287.9,2286.8,0.01342642]
[1769990934942,4.36938661,2288.7,2286.8,0.01342642]
[1769990934943,0.0011,2289.1,2287.2,13.39797583]
[1769990935149,1.18195766,2289.9,2288.5,0.01342642]
[1769990935476,1.18195766,2289.9,2287.3,1.34114023]
[1769990935477,13.42213136,2289.3,2287.3,1.34114023]
[1769990935675,0.11582642,2289.1,2287.1,0.01342642]
[1769990935843,4.774279,2289.0,2287.1,0.01342642]
[1769990936045,0.1024,2289.0,2287.1,0.01342642]
[1769990936374,2.395582,2288.9,2287.1,0.01342642]
[1769990936575,13.42213136,2289.8,2287.7,0.01342642]
[1769990936761,1.18195766,2289.9,2288.0,0.01342642]
[1769990936944,1.18195766,2289.9,2288.3,1.09251409]
[1769990937144,0.09020693,2289.9,2288.4,0.01342642]
[1769990937345,1.18197579,2289.9,2288.7,0.01342642]
[1769990937542,3.66206,2289.8,2288.1,0.917]
[1769990937785,3.66206,2289.8,2287.5,0.01342642]
[1769990937786,13.91996136,2289.7,2287.5,0.01342642]
[1769990937988,0.01342642,2289.2,2287.5,1.09288894]
[1769990938147,2.707948,2289.1,2287.2,0.01342642]
[1769990938477,0.1024,2289.4,2287.6,0.01342642]
[1769990938789,1.35245314,2289.4,2288.2,1.09256142]
[1769990938959,1.09189378,2289.6,2288.2,2.00956142]
[1769990939287,4.639594,2289.5,2287.8,0.01342642]
[1769990939446,0.01342642,2289.1,2287.6,1.09282037]
[1769990939642,0.01342642,2289.1,2287.2,5.28913385]
[1769990939842,0.01342642,2289.4,2287.5,0.01342642]
[1769990940085,0.01342642,2289.0,2287.7,1.09279544]
[1769990940381,0.01342642,2289.0,2286.3,4.38716884]
[1769990940382,0.01342642,2288.4,2286.3,4.38716884]
[1769990940678,0.01342642,2288.4,2286.4,1.53213098]
[1769990940679,0.1024,2288.2,2286.4,1.53213098]
[1769990940848,0.01342642,2287.9,2286.4,0.43871688]
[1769990941043,0.01342642,2287.7,2286.2,1.09350183]
[1769990941277,0.01342642,2287.0,2284.8,4.39003313]
[1769990941493,0.01342642,2286.6,2285.0,1.09850229]
[1769990941678,0.01342642,2287.0,2285.0,1.09850229]
[1769990941679,13.43555778,2287.7,2285.1,0.01342642]
[1769990941886,13.42213136,2287.7,2286.2,1.09351762]
[1769990942203,13.42213136,2287.7,2285.6,0.01342642]
[1769990942204,0.01342642,2287.0,2285.1,0.44076044]
[1769990942372,0.01342642,2286.7,2285.0,0.00444978]
[1769990942573,0.01342642,2286.4,2285.0,0.00444978]
[1769990942807,0.01342642,2286.8,2285.1,1.09404063]
[1769990942970,0.11582642,2286.9,2285.3,0.01342642]
[1769990942971,1.09318291,2286.9,2285.3,0.01342642]
[1769990943305,1.09280062,2287.7,2286.0,0.01342642]
[1769990943480,4.57,2287.6,2285.8,0.01342642]
[1769990943683,4.57,2287.6,2285.3,0.64137726]
[1769990943684,0.1024,2287.3,2285.3,0.64137726]
[1769990943872,13.52453136,2287.3,2285.4,0.01342642]
[1769990944200,0.01342642,2286.9,2285.2,0.91258]
[1769990944386,4.16827642,2286.8,2285.2,0.91258]
[1769990944597,0.01342642,2287.0,2285.2,0.91258]
[1769990944808,0.01342642,2286.8,2285.2,0.91258]
[1769990945008,1.09330801,2286.7,2285.3,1.09394827]
[1769990945304,0.01342642,2287.0,2285.2,2.00657612]
[1769990945470,14.52854951,2287.4,2285.5,0.01342642]
[1769990945669,0.01342642,2286.9,2285.2,2.00657612]
[1769990945869,4.48608642,2286.8,2285.2,0.91258]
[1769990946073,2.8099517,2286.7,2285.2,2.00655819]
[1769990946374,0.44995128,2286.7,2285.2,2.00657427]
[1769990946572,16.08835749,2287.4,2285.2,2.00657427]
[1769990946573,1.09281788,2287.7,2285.8,0.01342642]
[1769990946782,2.055551,2287.6,2285.8,0.01342642]
[1769990946999,1.09289617,2287.5,2285.9,1.08925759]
[1769990947219,0.01342642,2287.3,2285.6,4.37504556]
[1769990947473,0.01342642,2287.3,2285.4,0.001]
[1769990947474,0.01342642,2286.6,2285.4,0.001]
[1769990947700,0.01342642,2286.2,2285.1,0.001]
[1769990947869,0.01342642,2286.3,2285.1,0.001]
[1769990947870,2.246724,2286.1,2285.1,0.001]
[1769990948073,0.01342642,2286.3,2285.1,0.001]
[1769990948376,0.01342642,2285.9,2285.1,0.001]
[1769990948783,3.050551,2285.8,2285.1,0.001]
[1769990948987,0.01342642,2285.4,2284.2,0.001]
[1769990949317,0.01342642,2284.9,2284.2,0.001]
[1769990949525,0.01342642,2284.8,2283.7,0.917]
[1769990949691,0.01342642,2285.4,2283.7,2.01171406]
[1769990949892,0.01342642,2285.3,2283.8,0.63905729]
[1769990950109,3.088394,2285.2,2283.8,0.63905729]
[1769990950418,4.146297,2285.1,2283.3,1.09488065]
[1769990950617,0.01342642,2284.3,2282.4,4.38118112]
[1769990950819,0.01342642,2284.0,2281.7,13.59909613]
[1769990950995,1.10828496,2283.4,2281.5,4.38303204]
[1769990951199,0.01342642,2283.8,2281.7,0.01342642]
[1769990951394,1.13655313,2284.1,2281.7,0.01342642]
[1769990951395,1.1079015,2284.2,2282.1,13.59909613]
[1769990951587,2.17525142,2284.1,2282.2,0.917]
[1769990951789,1.09445248,2284.3,2282.4,0.01342642]
[1769990951989,0.54854178,2284.2,2282.3,0.01342642]
[1769990952186,0.54854178,2284.2,2282.4,0.01342642]
[1769990952391,0.54854178,2284.2,2282.5,0.01342642]
[1769990952392,2.095202,2284.1,2282.5,0.01342642]
[1769990952617,2.095202,2284.1,2282.4,0.01342642]
[1769990952789,0.54854178,2284.2,2282.4,0.01342642]
[1769990952984,1.094489,2284.2,2282.7,1.1086207]
[1769990953399,1.094489,2284.2,2282.7,1.09519428]
[1769990953623,2.729341,2284.1,2282.6,1.09522858]
[1769990953831,1.10791542,2284.2,2282.6,1.09522858]
[1769990954036,0.01342642,2284.0,2282.4,4.38134179]
[1769990954240,0.01342642,2283.7,2282.5,1.53339098]
[1769990954534,0.32868753,2284.0,2282.6,1.09522693]
[1769990954735,0.01342642,2284.8,2282.6,1.09522693]
[1769990955041,0.01342642,2284.3,2282.6,1.09522693]
[1769990955207,0.01342642,2284.1,2282.6,1.09522693]
[1769990955394,1.10770988,2284.7,2282.7,0.2335703]
[1769990955600,0.01342642,2284.3,2282.6,1.09522693]
[1769990955807,0.01342642,2284.0,2282.7,0.59143302]
[1769990956009,0.01342642,2284.3,2282.7,0.59143302]
[1769990956199,0.01342642,2284.4,2282.7,0.59143302]
[1769990956394,2.12053342,2284.3,2282.7,0.59143302]
[1769990956597,2.12053342,2284.3,2282.5,4.83252967]
[1769990956598,0.01342642,2283.8,2282.5,0.43813418]
[1769990956924,0.11582642,2284.5,2282.6,1.09523752]
[1769990957225,1.10799734,2284.0,2282.4,4.38096907]
[1769990957431,0.01342642,2283.8,2282.4,1.09533824]
[1769990957650,0.01342642,2283.3,2281.9,1.09554159]
[1769990957795,0.01342642,2283.9,2282.3,1.09538359]
[1769990957999,1.09457092,2284.0,2282.4,0.54769285]
[1769990958232,0.01342642,2283.6,2282.3,1.09538359]
[1769990958396,0.01342642,2283.4,2282.3,1.09538139]
[1769990958728,0.01342642,2283.8,2282.3,1.09538436]
[1769990958931,14.50557177,2284.0,2282.3,1.09538436]
[1769990958932,1.09457092,2284.0,2282.3,1.09538436]
[1769990959139,1.09450433,2284.2,2282.4,0.01342642]